[Event "*** SCC Grand Prix: Titled Tuesday Blitz"]
[Site "Chess.com"]
[Date "2020.06.09"]
[Round "10"]
[White "CrushingKings"]
[Black "GM_Buhmann"]
[Result "1/2-1/2"]
[WhiteElo "2542"]
[BlackElo "2733"]
[TimeControl "180+1"]
[EndTime "10:56:16 PDT"]
[Termination "Game drawn by repetition"]

1. e4 {[%clk 0:03:00.9]} 1... c5 {[%clk 0:02:59.9]} 2. d4 {[%clk 0:03:00.5]}
2... cxd4 {[%clk 0:02:59.5]} 3. c3 {[%clk 0:03:01]} 3... d5 {[%clk 0:02:54]} 4.
exd5 {[%clk 0:03:00.9]} 4... Qxd5 {[%clk 0:02:50.2]} 5. cxd4 {[%clk 0:03:00.6]}
5... e6 {[%clk 0:02:45.9]} 6. Nf3 {[%clk 0:02:56.4]} 6... Nf6 {[%clk 0:02:41.8]}
7. Nc3 {[%clk 0:02:56.2]} 7... Bb4 {[%clk 0:02:41]} 8. Bd2 {[%clk 0:02:45.3]}
8... Qd8 {[%clk 0:02:34.2]} 9. Bd3 {[%clk 0:02:11.4]} 9... Nc6 {[%clk
0:02:33.8]} 10. a3 {[%clk 0:02:09.2]} 10... Be7 {[%clk 0:02:30.7]} 11. Be3
{[%clk 0:02:00.9]} 11... O-O {[%clk 0:02:27.8]} 12. O-O {[%clk 0:02:01.4]} 12...
b6 {[%clk 0:02:28]} 13. Rc1 {[%clk 0:02:00.4]} 13... Bb7 {[%clk 0:02:28.3]} 14.
h3 {[%clk 0:02:00.5]} 14... Rc8 {[%clk 0:02:28.1]} 15. Bb1 {[%clk 0:01:57.6]}
15... Qd6 {[%clk 0:02:18.7]} 16. Qd3 {[%clk 0:01:38.7]} 16... Rfd8 {[%clk
0:02:13.2]} 17. Rfd1 {[%clk 0:01:34.6]} 17... g6 {[%clk 0:02:07.3]} 18. Ba2
{[%clk 0:01:25.8]} 18... Na5 {[%clk 0:02:02]} 19. Ne5 {[%clk 0:01:21.9]} 19...
Nd5 {[%clk 0:02:01.1]} 20. Ne4 {[%clk 0:01:07.5]} 20... Qb8 {[%clk 0:01:54.9]}
21. Bh6 {[%clk 0:01:03.1]} 21... Rxc1 {[%clk 0:01:51]} 22. Rxc1 {[%clk
0:00:59.3]} 22... Nf6 {[%clk 0:01:30.6]} 23. Nxf7 {[%clk 0:00:40.1]} 23... Bxe4
{[%clk 0:01:27.1]} 24. Bxe6 {[%clk 0:00:40.2]} 24... Bxd3 {[%clk 0:01:02.3]} 25.
Nxd8+ {[%clk 0:00:40]} 25... Kh8 {[%clk 0:01:02.8]} 26. Nf7+ {[%clk 0:00:37.6]}
26... Kg8 {[%clk 0:01:03.3]} 27. Ne5+ {[%clk 0:00:17]} 27... Kh8 {[%clk
0:01:03]} 28. Nf7+ {[%clk 0:00:14.1]} 28... Kg8 {[%clk 0:01:03.4]} 29. Ne5+
{[%clk 0:00:14.6]} 29... Kh8 {[%clk 0:01:03.5]} 30. Nf7+ {[%clk 0:00:13.8]}
1/2-1/2

[Event "*** SCC Grand Prix: Titled Tuesday Blitz"]
[Site "Chess.com"]
[Date "2020.06.09"]
[Round "10"]
[White "Caterpiller35"]
[Black "WiktoriaPOL"]
[Result "1-0"]
[WhiteElo "2296"]
[BlackElo "2054"]
[TimeControl "180+1"]
[EndTime "10:56:23 PDT"]
[Termination "Caterpiller35 won by resignation"]

1. e4 {[%clk 0:02:59.1]} 1... c5 {[%clk 0:02:59.7]} 2. Nc3 {[%clk 0:02:58.4]}
2... Nc6 {[%clk 0:02:59.2]} 3. Bb5 {[%clk 0:02:58]} 3... Nd4 {[%clk 0:02:58.7]}
4. Bc4 {[%clk 0:02:58.1]} 4... e6 {[%clk 0:02:57.1]} 5. Nge2 {[%clk 0:02:57.6]}
5... Ne7 {[%clk 0:02:53]} 6. O-O {[%clk 0:02:53.5]} 6... d5 {[%clk 0:02:50.8]}
7. exd5 {[%clk 0:02:52.4]} 7... exd5 {[%clk 0:02:50.9]} 8. Nxd5 {[%clk
0:02:49.4]} 8... Nxd5 {[%clk 0:02:49.3]} 9. Nxd4 {[%clk 0:02:49.5]} 9... cxd4
{[%clk 0:02:47.2]} 10. Re1+ {[%clk 0:02:40.2]} 10... Be7 {[%clk 0:02:45.7]} 11.
Qh5 {[%clk 0:02:38.4]} 11... Be6 {[%clk 0:02:40.3]} 12. Rxe6 {[%clk 0:02:36.4]}
12... Nf4 {[%clk 0:02:23.4]} 13. Qb5+ {[%clk 0:02:31.3]} 13... Qd7 {[%clk
0:02:21.8]} 14. Qxd7+ {[%clk 0:02:25.7]} 14... Kxd7 {[%clk 0:02:21.4]} 15. Re4
{[%clk 0:02:26.3]} 15... Ne6 {[%clk 0:02:18.7]} 16. d3 {[%clk 0:02:15.2]} 16...
Bc5 {[%clk 0:02:14.7]} 17. b4 {[%clk 0:02:12.1]} 17... Bxb4 {[%clk 0:02:11.7]}
18. Rb1 {[%clk 0:02:10.7]} 18... a5 {[%clk 0:02:10.2]} 19. a3 {[%clk 0:02:09.7]}
19... Bc3 {[%clk 0:02:05.9]} 20. Rxb7+ {[%clk 0:02:09.1]} 20... Kc6 {[%clk
0:02:05.2]} 21. Rxf7 {[%clk 0:01:44.8]} 21... Nc5 {[%clk 0:02:03.4]} 22. Bf4
{[%clk 0:01:33.3]} 22... Rae8 {[%clk 0:01:59.9]} 23. Rxe8 {[%clk 0:01:25.3]}
23... Rxe8 {[%clk 0:01:59.1]} 24. h3 {[%clk 0:01:25]} 24... Re1+ {[%clk
0:01:54.5]} 25. Kh2 {[%clk 0:01:24.8]} 25... Re2 {[%clk 0:01:54.5]} 26. Rc7+
{[%clk 0:01:18.1]} 26... Kb6 {[%clk 0:01:52.8]} 27. Rxg7 {[%clk 0:01:19]} 27...
Rxf2 {[%clk 0:01:51.2]} 28. Bc7+ {[%clk 0:01:15.4]} 28... Kc6 {[%clk 0:01:48.7]}
29. Rxh7 {[%clk 0:01:13]} 29... Rxc2 {[%clk 0:01:48]} 30. h4 {[%clk 0:01:05.8]}
30... Rd2 {[%clk 0:01:47.3]} 31. Bf4 {[%clk 0:01:05]} 31... Rd1 {[%clk 0:01:46]}
32. Rh6+ {[%clk 0:01:00.9]} 32... Kd7 {[%clk 0:01:44.4]} 33. Bb5+ {[%clk
0:00:58.2]} 33... Kd8 {[%clk 0:01:39.3]} 34. Bd6 {[%clk 0:00:55.8]} 34... Kc8
{[%clk 0:01:09.2]} 35. Bxc5 {[%clk 0:00:50.6]} 35... Bd2 {[%clk 0:01:05.3]} 36.
Rh7 {[%clk 0:00:50.6]} 36... Bf4+ {[%clk 0:01:01.3]} 37. Kh3 {[%clk 0:00:48.6]}
1-0

[Event "*** SCC Grand Prix: Titled Tuesday Blitz"]
[Site "Chess.com"]
[Date "2020.06.09"]
[Round "10"]
[White "Kislov_Oleg"]
[Black "Nbk90"]
[Result "0-1"]
[WhiteElo "2401"]
[BlackElo "2558"]
[TimeControl "180+1"]
[EndTime "10:56:24 PDT"]
[Termination "Nbk90 won by resignation"]

1. e4 {[%clk 0:03:00.9]} 1... e5 {[%clk 0:02:57.8]} 2. Nf3 {[%clk 0:03:00.7]}
2... Nc6 {[%clk 0:02:57.1]} 3. d4 {[%clk 0:03:01.4]} 3... exd4 {[%clk
0:02:56.2]} 4. Nxd4 {[%clk 0:03:02]} 4... Bb4+ {[%clk 0:02:56]} 5. c3 {[%clk
0:02:59.7]} 5... Bc5 {[%clk 0:02:55.8]} 6. Be3 {[%clk 0:02:58.4]} 6... Bb6
{[%clk 0:02:55.6]} 7. Bc4 {[%clk 0:02:48.4]} 7... d6 {[%clk 0:02:54.7]} 8. O-O
{[%clk 0:02:34]} 8... Nf6 {[%clk 0:02:53.3]} 9. f3 {[%clk 0:02:29.9]} 9... O-O
{[%clk 0:02:47.7]} 10. Bf2 {[%clk 0:02:11.4]} 10... d5 {[%clk 0:02:37.5]} 11.
exd5 {[%clk 0:02:07.2]} 11... Nxd5 {[%clk 0:02:36.7]} 12. Nxc6 {[%clk
0:02:05.1]} 12... bxc6 {[%clk 0:02:36.2]} 13. Qd3 {[%clk 0:01:35.1]} 13... Nf4
{[%clk 0:02:26.1]} 14. Qxd8 {[%clk 0:01:33.3]} 14... Rxd8 {[%clk 0:02:25.4]} 15.
Re1 {[%clk 0:01:20]} 15... Kf8 {[%clk 0:02:16.9]} 16. Na3 {[%clk 0:01:08.3]}
16... Rd2 {[%clk 0:02:06.4]} 17. Bxb6 {[%clk 0:01:06.2]} 17... axb6 {[%clk
0:02:00.4]} 18. Bf1 {[%clk 0:01:02.7]} 18... Rxb2 {[%clk 0:01:54]} 19. Nc4
{[%clk 0:01:01.9]} 19... Rc2 {[%clk 0:01:52.6]} 20. Rad1 {[%clk 0:00:49.8]}
20... Be6 {[%clk 0:01:50.5]} 21. Ne5 {[%clk 0:00:48.8]} 21... c5 {[%clk
0:01:30]} 22. g3 {[%clk 0:00:42.4]} 22... Nh3+ {[%clk 0:01:24.7]} 23. Bxh3
{[%clk 0:00:41.7]} 23... Bxh3 {[%clk 0:01:25.1]} 24. Nd7+ {[%clk 0:00:38.6]}
24... Kg8 {[%clk 0:01:16]} 25. Re7 {[%clk 0:00:29.7]} 25... h5 {[%clk 0:01:08]}
26. Rde1 {[%clk 0:00:24.5]} 26... Rg2+ {[%clk 0:01:06.4]} 27. Kh1 {[%clk
0:00:24.2]} 27... Raxa2 {[%clk 0:01:05.8]} 28. Re8+ {[%clk 0:00:18.5]} 28... Kh7
{[%clk 0:01:05.8]} 29. Nf8+ {[%clk 0:00:18.5]} 29... Kh6 {[%clk 0:01:05.7]} 0-1

[Event "*** SCC Grand Prix: Titled Tuesday Blitz"]
[Site "Chess.com"]
[Date "2020.06.09"]
[Round "10"]
[White "LiemLe"]
[Black "maciek_92"]
[Result "1-0"]
[WhiteElo "2897"]
[BlackElo "2682"]
[TimeControl "180+1"]
[EndTime "10:56:29 PDT"]
[Termination "LiemLe won by resignation"]

1. c4 {[%clk 0:03:00.9]} 1... f5 {[%clk 0:02:59.5]} 2. g3 {[%clk 0:02:59.9]}
2... Nf6 {[%clk 0:02:59.9]} 3. Bg2 {[%clk 0:03:00.5]} 3... g6 {[%clk 0:03:00.4]}
4. Nc3 {[%clk 0:03:00.1]} 4... Bg7 {[%clk 0:03:00.9]} 5. d3 {[%clk 0:03:01]}
5... O-O {[%clk 0:03:00.7]} 6. e4 {[%clk 0:03:01.6]} 6... d6 {[%clk 0:03:01]} 7.
exf5 {[%clk 0:02:54.3]} 7... gxf5 {[%clk 0:02:57.9]} 8. Nge2 {[%clk 0:02:53.6]}
8... e5 {[%clk 0:02:55]} 9. O-O {[%clk 0:02:53]} 9... c6 {[%clk 0:02:52.7]} 10.
d4 {[%clk 0:02:41.4]} 10... Nbd7 {[%clk 0:02:26.4]} 11. b3 {[%clk 0:02:32.9]}
11... e4 {[%clk 0:02:00.4]} 12. Nf4 {[%clk 0:02:31.7]} 12... Re8 {[%clk
0:01:56.8]} 13. Bb2 {[%clk 0:02:23.3]} 13... Nf8 {[%clk 0:01:55.6]} 14. d5
{[%clk 0:02:21.9]} 14... Ng6 {[%clk 0:01:52.4]} 15. Nce2 {[%clk 0:01:45]} 15...
Nxd5 {[%clk 0:01:29.5]} 16. Bxg7 {[%clk 0:01:43.3]} 16... Ndxf4 {[%clk
0:01:28.7]} 17. Nxf4 {[%clk 0:01:41.5]} 17... Nxf4 {[%clk 0:01:09.9]} 18. Bc3
{[%clk 0:01:35.8]} 18... Nd3 {[%clk 0:01:01]} 19. Qh5 {[%clk 0:01:31]} 19... d5
{[%clk 0:00:52.7]} 20. cxd5 {[%clk 0:01:10.8]} 20... cxd5 {[%clk 0:00:53.6]} 21.
Rad1 {[%clk 0:01:10]} 21... Be6 {[%clk 0:00:45.7]} 22. Bd4 {[%clk 0:01:08.6]}
22... Qe7 {[%clk 0:00:30.4]} 23. Bf3 {[%clk 0:00:48.5]} 23... Qf7 {[%clk
0:00:21.2]} 24. Qh4 {[%clk 0:00:48.1]} 24... Rf8 {[%clk 0:00:14.1]} 25. Bh5
{[%clk 0:00:44]} 1-0

[Event "*** SCC Grand Prix: Titled Tuesday Blitz"]
[Site "Chess.com"]
[Date "2020.06.09"]
[Round "10"]
[White "SargissyanSargis"]
[Black "Quiet_Desperation"]
[Result "1-0"]
[WhiteElo "2310"]
[BlackElo "1932"]
[TimeControl "180+1"]
[EndTime "10:56:36 PDT"]
[Termination "SargissyanSargis won by resignation"]

1. e4 {[%clk 0:02:59.7]} 1... e6 {[%clk 0:02:56.7]} 2. d4 {[%clk 0:02:59.2]}
2... d5 {[%clk 0:02:56.5]} 3. Nc3 {[%clk 0:02:59.8]} 3... Bb4 {[%clk 0:02:53.6]}
4. e5 {[%clk 0:02:59.2]} 4... c5 {[%clk 0:02:49.3]} 5. a3 {[%clk 0:02:59.6]}
5... Bxc3+ {[%clk 0:02:48.8]} 6. bxc3 {[%clk 0:03:00.1]} 6... Ne7 {[%clk
0:02:48.9]} 7. Qg4 {[%clk 0:02:59.9]} 7... Qc7 {[%clk 0:02:46.5]} 8. Bd3 {[%clk
0:02:58.6]} 8... g6 {[%clk 0:02:03.7]} 9. Nf3 {[%clk 0:02:55.3]} 9... c4 {[%clk
0:02:00.8]} 10. Be2 {[%clk 0:02:54.2]} 10... Qa5 {[%clk 0:02:00.6]} 11. Kd2
{[%clk 0:02:51]} 11... Qa4 {[%clk 0:01:59.4]} 12. Qh4 {[%clk 0:02:40.4]} 12...
Nd7 {[%clk 0:01:52.8]} 13. g4 {[%clk 0:02:39.5]} 13... b6 {[%clk 0:01:47.5]} 14.
Kd1 {[%clk 0:02:33.9]} 14... Bb7 {[%clk 0:01:18.1]} 15. Bg5 {[%clk 0:02:26.9]}
15... Ng8 {[%clk 0:01:16.5]} 16. Kd2 {[%clk 0:02:10.1]} 16... h6 {[%clk
0:01:10.8]} 17. Rhb1 {[%clk 0:02:10.4]} 17... a5 {[%clk 0:00:48.9]} 18. Bf6
{[%clk 0:01:56.2]} 18... Ngxf6 {[%clk 0:00:45.7]} 19. exf6 {[%clk 0:01:56]}
19... O-O-O {[%clk 0:00:45]} 20. Qg3 {[%clk 0:01:44.8]} 20... Rhe8 {[%clk
0:00:33.5]} 21. Ne5 {[%clk 0:01:36.4]} 21... Nxe5 {[%clk 0:00:33]} 22. Qxe5
{[%clk 0:01:35.6]} 22... Qc6 {[%clk 0:00:31.5]} 23. Rb2 {[%clk 0:01:33.2]} 23...
b5 {[%clk 0:00:30.9]} 24. Rab1 {[%clk 0:01:32.8]} 24... Ba6 {[%clk 0:00:30.9]}
25. f4 {[%clk 0:01:27.9]} 25... Kd7 {[%clk 0:00:28]} 26. h4 {[%clk 0:01:26.5]}
26... Rb8 {[%clk 0:00:25.5]} 27. Bf3 {[%clk 0:01:22.1]} 27... b4 {[%clk
0:00:23.2]} 28. axb4 {[%clk 0:01:21.7]} 28... axb4 {[%clk 0:00:23.5]} 29. Rxb4
{[%clk 0:01:22.2]} 29... Rxb4 {[%clk 0:00:22.9]} 30. Rxb4 {[%clk 0:01:22.8]}
30... Bb5 {[%clk 0:00:23.6]} 31. h5 {[%clk 0:01:15.7]} 31... gxh5 {[%clk
0:00:22.5]} 32. Qxh5 {[%clk 0:01:15.7]} 32... Rf8 {[%clk 0:00:16.6]} 33. Qxh6
{[%clk 0:01:16.2]} 33... Ra8 {[%clk 0:00:15.5]} 34. Qg7 {[%clk 0:01:15.4]} 34...
Ke8 {[%clk 0:00:14.8]} 35. Qg8+ {[%clk 0:01:14]} 35... Kd7 {[%clk 0:00:15.1]}
36. Qxf7+ {[%clk 0:01:14.4]} 36... Kc8 {[%clk 0:00:15.5]} 37. Qf8+ {[%clk
0:01:11.6]} 37... Kb7 {[%clk 0:00:15.2]} 38. Qe7+ {[%clk 0:01:10]} 38... Kb6
{[%clk 0:00:15.2]} 39. f7 {[%clk 0:01:09.1]} 1-0

[Event "*** SCC Grand Prix: Titled Tuesday Blitz"]
[Site "Chess.com"]
[Date "2020.06.09"]
[Round "10"]
[White "Khvicha_Supatashvili"]
[Black "Gennady_Kozlov"]
[Result "1-0"]
[WhiteElo "2723"]
[BlackElo "2569"]
[TimeControl "180+1"]
[EndTime "10:56:42 PDT"]
[Termination "Khvicha_Supatashvili won by resignation"]

1. d4 {[%clk 0:03:00.9]} 1... e6 {[%clk 0:02:58.9]} 2. c4 {[%clk 0:03:00.6]}
2... b6 {[%clk 0:02:58.9]} 3. Nf3 {[%clk 0:03:00.1]} 3... Bb7 {[%clk 0:02:58.9]}
4. g3 {[%clk 0:03:00.1]} 4... Nf6 {[%clk 0:02:58.9]} 5. Bg2 {[%clk 0:02:59.6]}
5... Be7 {[%clk 0:02:59.6]} 6. O-O {[%clk 0:02:59.2]} 6... O-O {[%clk
0:02:59.7]} 7. Nc3 {[%clk 0:02:59.6]} 7... Ne4 {[%clk 0:02:59.7]} 8. Bd2 {[%clk
0:02:59.3]} 8... f5 {[%clk 0:02:57.9]} 9. d5 {[%clk 0:02:58.5]} 9... Bf6 {[%clk
0:02:55.6]} 10. Rc1 {[%clk 0:02:57.2]} 10... Qe7 {[%clk 0:02:54.6]} 11. dxe6
{[%clk 0:02:50.5]} 11... dxe6 {[%clk 0:02:53.9]} 12. Qc2 {[%clk 0:02:49.8]}
12... Nxc3 {[%clk 0:02:53.1]} 13. Bxc3 {[%clk 0:02:47.1]} 13... Be4 {[%clk
0:02:53.6]} 14. Qb3 {[%clk 0:02:42.5]} 14... Nd7 {[%clk 0:02:53.1]} 15. Bxf6
{[%clk 0:02:41.1]} 15... Qxf6 {[%clk 0:02:52.4]} 16. Rfd1 {[%clk 0:02:37.2]}
16... Nc5 {[%clk 0:02:48.7]} 17. Qa3 {[%clk 0:02:30.9]} 17... a5 {[%clk
0:02:48.2]} 18. Ne1 {[%clk 0:02:28.9]} 18... Bxg2 {[%clk 0:02:47.2]} 19. Nxg2
{[%clk 0:02:28.4]} 19... Rad8 {[%clk 0:02:46.8]} 20. Nf4 {[%clk 0:02:24.3]}
20... Qe5 {[%clk 0:02:42.6]} 21. b3 {[%clk 0:02:03.5]} 21... g5 {[%clk 0:02:40]}
22. Rxd8 {[%clk 0:01:51.5]} 22... Rxd8 {[%clk 0:02:38]} 23. Nd3 {[%clk
0:01:50.8]} 23... Nxd3 {[%clk 0:02:33.6]} 24. exd3 {[%clk 0:01:50.9]} 24... Rxd3
{[%clk 0:02:33.7]} 25. Qe7 {[%clk 0:01:50.9]} 25... h6 {[%clk 0:02:23.6]} 26.
Qe8+ {[%clk 0:01:49]} 26... Kg7 {[%clk 0:02:23.5]} 27. Qe7+ {[%clk 0:01:48.5]}
27... Kg8 {[%clk 0:02:19.1]} 28. Qe8+ {[%clk 0:01:48.3]} 28... Kh7 {[%clk
0:01:54.1]} 29. Qf7+ {[%clk 0:01:46.9]} 29... Qg7 {[%clk 0:01:54.6]} 30. Qxe6
{[%clk 0:01:45.7]} 30... Qf8 {[%clk 0:01:55.2]} 31. Re1 {[%clk 0:01:42.9]} 31...
Rd2 {[%clk 0:01:50.1]} 32. Re5 {[%clk 0:01:36.9]} 32... Rd6 {[%clk 0:01:46.5]}
33. Qxf5+ {[%clk 0:01:30.4]} 33... Qxf5 {[%clk 0:01:45.6]} 34. Rxf5 {[%clk
0:01:30.6]} 34... Kg6 {[%clk 0:01:45.4]} 35. Rb5 {[%clk 0:01:19.3]} 35... Rd2
{[%clk 0:01:42.8]} 36. c5 {[%clk 0:01:17.4]} 36... bxc5 {[%clk 0:01:34.5]} 37.
Rxa5 {[%clk 0:01:13.6]} 37... Rc2 {[%clk 0:01:33.8]} 38. Ra7 {[%clk 0:01:08]}
38... c4 {[%clk 0:01:31.9]} 39. Ra6+ {[%clk 0:01:01.5]} 39... Kf5 {[%clk
0:01:27.1]} 40. bxc4 {[%clk 0:01:00.9]} 40... Rxc4 {[%clk 0:01:24.9]} 41. Rxh6
{[%clk 0:01:01.4]} 41... c5 {[%clk 0:01:22.1]} 42. Kg2 {[%clk 0:01:00.7]} 42...
Ke4 {[%clk 0:01:20.3]} 43. h4 {[%clk 0:00:58.7]} 43... Ra4 {[%clk 0:01:17.8]}
44. hxg5 {[%clk 0:00:58.1]} 44... Rxa2 {[%clk 0:01:17.2]} 45. Rf6 {[%clk
0:00:54.8]} 45... Ke5 {[%clk 0:01:15.6]} 46. Rf4 {[%clk 0:00:54.2]} 46... Ra6
{[%clk 0:01:15.5]} 47. Kh3 {[%clk 0:00:53.1]} 47... Rc6 {[%clk 0:01:13.6]} 48.
Rc4 {[%clk 0:00:51.2]} 48... Kd5 {[%clk 0:01:13.3]} 49. Rc1 {[%clk 0:00:50.9]}
49... c4 {[%clk 0:01:12.3]} 50. f4 {[%clk 0:00:51.1]} 50... Ke4 {[%clk
0:01:12.3]} 51. Kg4 {[%clk 0:00:49.7]} 51... c3 {[%clk 0:01:10.4]} 52. f5 {[%clk
0:00:49.4]} 52... c2 {[%clk 0:01:08]} 53. f6 {[%clk 0:00:48.9]} 53... Ke5 {[%clk
0:01:07.5]} 54. f7 {[%clk 0:00:46.1]} 54... Rc8 {[%clk 0:01:07.5]} 55. Rxc2
{[%clk 0:00:44.3]} 1-0

[Event "*** SCC Grand Prix: Titled Tuesday Blitz"]
[Site "Chess.com"]
[Date "2020.06.09"]
[Round "10"]
[White "Shuvalov"]
[Black "stanyga"]
[Result "0-1"]
[WhiteElo "2447"]
[BlackElo "2638"]
[TimeControl "180+1"]
[EndTime "10:56:48 PDT"]
[Termination "stanyga won by resignation"]

1. Nf3 {[%clk 0:03:00.9]} 1... d5 {[%clk 0:02:58.3]} 2. c4 {[%clk 0:03:00.5]}
2... c6 {[%clk 0:02:55.9]} 3. g3 {[%clk 0:03:00.2]} 3... Nd7 {[%clk 0:02:51.4]}
4. cxd5 {[%clk 0:02:55]} 4... cxd5 {[%clk 0:02:50.9]} 5. Nc3 {[%clk 0:02:52.3]}
5... e5 {[%clk 0:02:45.3]} 6. Nxd5 {[%clk 0:02:47.7]} 6... e4 {[%clk 0:02:45.1]}
7. Ng1 {[%clk 0:02:34.7]} 7... Ngf6 {[%clk 0:02:41.7]} 8. Nxf6+ {[%clk
0:02:30.5]} 8... Qxf6 {[%clk 0:02:38.7]} 9. d4 {[%clk 0:02:07.4]} 9... Bb4+
{[%clk 0:02:35.5]} 10. Bd2 {[%clk 0:02:05]} 10... Qxd4 {[%clk 0:02:34.2]} 11. e3
{[%clk 0:02:01.5]} 11... Qxb2 {[%clk 0:02:33.2]} 12. Bxb4 {[%clk 0:01:57.5]}
12... Qxb4+ {[%clk 0:02:32.8]} 13. Qd2 {[%clk 0:01:58]} 13... Qxd2+ {[%clk
0:02:31.9]} 14. Kxd2 {[%clk 0:01:58.9]} 14... Nc5 {[%clk 0:02:30.7]} 15. Rc1
{[%clk 0:01:54.3]} 15... b6 {[%clk 0:02:30]} 16. Bb5+ {[%clk 0:01:53.4]} 16...
Bd7 {[%clk 0:02:18]} 17. Bxd7+ {[%clk 0:01:53]} 17... Kxd7 {[%clk 0:02:18.2]}
18. Ne2 {[%clk 0:01:50.5]} 18... Rhd8 {[%clk 0:02:14.1]} 19. Nd4 {[%clk
0:01:50.3]} 19... Ne6 {[%clk 0:02:12.8]} 20. Nb5 {[%clk 0:01:44.4]} 20... Ke7+
{[%clk 0:02:05.3]} 21. Ke2 {[%clk 0:01:43.8]} 21... Rac8 {[%clk 0:02:04.3]} 22.
Nc3 {[%clk 0:01:34.6]} 22... f5 {[%clk 0:01:55.2]} 23. g4 {[%clk 0:01:31.6]}
23... g6 {[%clk 0:01:51]} 24. gxf5 {[%clk 0:01:31.8]} 24... gxf5 {[%clk
0:01:50.2]} 25. Rhg1 {[%clk 0:01:31.4]} 25... Rc5 {[%clk 0:01:47.7]} 26. a4
{[%clk 0:01:21]} 26... Rdc8 {[%clk 0:01:43.4]} 27. Nd5+ {[%clk 0:01:14.7]} 27...
Kd6 {[%clk 0:01:39.6]} 28. Rxc5 {[%clk 0:01:14.2]} 28... Rxc5 {[%clk 0:01:39.3]}
29. Nf6 {[%clk 0:01:10.2]} 29... Rc2+ {[%clk 0:01:39.1]} 30. Kd1 {[%clk
0:01:09.1]} 30... Ra2 {[%clk 0:01:38.6]} 31. Rg8 {[%clk 0:01:07.7]} 31... Rxf2
{[%clk 0:01:35.2]} 32. h4 {[%clk 0:01:05.9]} 32... Ke5 {[%clk 0:01:32]} 33. Nxh7
{[%clk 0:01:02.8]} 33... f4 {[%clk 0:01:32.1]} 34. exf4+ {[%clk 0:01:00.8]}
34... Nxf4 {[%clk 0:01:31.1]} 35. Ng5 {[%clk 0:00:58.9]} 35... e3 {[%clk
0:01:26.6]} 36. Re8+ {[%clk 0:00:56.5]} 36... Kd4 {[%clk 0:01:26.8]} 37. Rd8+
{[%clk 0:00:47.5]} 37... Kc4 {[%clk 0:01:26]} 38. Ke1 {[%clk 0:00:42]} 38...
Nd3+ {[%clk 0:01:23.9]} 39. Rxd3 {[%clk 0:00:36.2]} 39... Kxd3 {[%clk
0:01:23.2]} 40. Ne6 {[%clk 0:00:35.1]} 40... e2 {[%clk 0:01:19]} 41. Kxf2 {[%clk
0:00:31.7]} 41... Kd2 {[%clk 0:01:19.4]} 42. Nf4 {[%clk 0:00:19.7]} 42... e1=Q+
{[%clk 0:01:18.5]} 43. Kf3 {[%clk 0:00:20.6]} 43... Qxh4 {[%clk 0:01:17.7]} 44.
Ng2 {[%clk 0:00:19.4]} 44... Qxa4 {[%clk 0:01:16.8]} 0-1

[Event "*** SCC Grand Prix: Titled Tuesday Blitz"]
[Site "Chess.com"]
[Date "2020.06.09"]
[Round "10"]
[White "Jbd735"]
[Black "lucachess49"]
[Result "1-0"]
[WhiteElo "2452"]
[BlackElo "2328"]
[TimeControl "180+1"]
[EndTime "10:56:48 PDT"]
[Termination "Jbd735 won by resignation"]

1. e4 {[%clk 0:03:00.9]} 1... e5 {[%clk 0:02:59]} 2. Nf3 {[%clk 0:03:00.5]} 2...
Nc6 {[%clk 0:02:59.6]} 3. Bb5 {[%clk 0:03:00.2]} 3... a6 {[%clk 0:02:59.1]} 4.
Ba4 {[%clk 0:03:00.4]} 4... Nf6 {[%clk 0:02:58.6]} 5. O-O {[%clk 0:02:59.8]}
5... Be7 {[%clk 0:02:56.6]} 6. Re1 {[%clk 0:02:59.7]} 6... b5 {[%clk 0:02:56.6]}
7. Bb3 {[%clk 0:02:59.6]} 7... d6 {[%clk 0:02:57.5]} 8. c3 {[%clk 0:02:58]} 8...
O-O {[%clk 0:02:56.7]} 9. h3 {[%clk 0:02:57.2]} 9... Na5 {[%clk 0:02:54.2]} 10.
Bc2 {[%clk 0:02:57.3]} 10... c5 {[%clk 0:02:54.8]} 11. d4 {[%clk 0:02:57.6]}
11... Qc7 {[%clk 0:02:55.5]} 12. Nbd2 {[%clk 0:02:57.5]} 12... Bd7 {[%clk
0:02:55.3]} 13. Nf1 {[%clk 0:02:52.5]} 13... Nc4 {[%clk 0:02:55.3]} 14. b3
{[%clk 0:02:47.2]} 14... Nb6 {[%clk 0:02:55.4]} 15. d5 {[%clk 0:02:47.1]} 15...
c4 {[%clk 0:02:51.2]} 16. Bd2 {[%clk 0:02:39.1]} 16... Rfc8 {[%clk 0:02:41.8]}
17. Ne3 {[%clk 0:02:33.7]} 17... b4 {[%clk 0:02:20.7]} 18. cxb4 {[%clk
0:02:14.1]} 18... cxb3 {[%clk 0:02:20.6]} 19. Bxb3 {[%clk 0:02:12.7]} 19... Nxe4
{[%clk 0:02:20.3]} 20. Rc1 {[%clk 0:02:01.6]} 20... Qb7 {[%clk 0:02:18.5]} 21.
Rxc8+ {[%clk 0:01:34.8]} 21... Rxc8 {[%clk 0:02:16.8]} 22. Bc1 {[%clk
0:01:34.5]} 22... f5 {[%clk 0:01:49.3]} 23. Nxe5 {[%clk 0:01:17.7]} 23... Bh4
{[%clk 0:01:24.6]} 24. Nd3 {[%clk 0:01:10.6]} 24... Bb5 {[%clk 0:01:22.4]} 25.
Nxf5 {[%clk 0:01:03.9]} 25... Bxf2+ {[%clk 0:00:28.6]} 26. Nxf2 {[%clk
0:01:01.5]} 26... Nxf2 {[%clk 0:00:29.5]} 27. Kxf2 {[%clk 0:00:53.6]} 27... Rf8
{[%clk 0:00:28.8]} 28. Qf3 {[%clk 0:00:40]} 28... Kh8 {[%clk 0:00:06.9]} 29. Bb2
{[%clk 0:00:31.9]} 1-0